bitfinex-derivatives/quotes_SOLF0:USTF0_20241212
["timestamp","ask_amount","ask_price","bid_price","bid_amount"]
[1733997462612,2.1487,232.61,232.58,2.1489]
[1733997462809,8.08048764,232.62,232.58,2.1489]
[1733997463903,8.08048764,232.62,232.52,1.3824]
[1733997464111,2.1488,232.6,232.56,2.1491]
[1733997465112,8.08048764,232.62,232.55,8.08048764]
[1733997465313,8.08048764,232.64,232.55,8.08048764]
[1733997465814,10.22898764,232.64,232.6,2.1488]
[1733997466006,8.08048764,232.64,232.6,2.1488]
[1733997467715,2.1485,232.63,232.6,2.1488]
[1733997468413,2.1485,232.63,232.59,2.1488]
[1733997468715,8.08048764,232.62,232.59,2.1488]
[1733997470112,8.08048764,232.62,232.6,2.1488]
[1733997470313,2.1485,232.64,232.57,8.08048764]
[1733997470615,10.22898764,232.64,232.57,8.08048764]
[1733997471009,8.08048764,232.64,232.61,2.1486]
[1733997471314,8.08048764,232.64,232.57,8.08048764]
[1733997471617,8.08048764,232.64,232.62,2.1486]
[1733997473112,2.1483,232.66,232.52,6.56845377]
[1733997473113,78.09201163,232.68,232.66,2.1483]
[1733997473319,2.8428,232.72,232.65,8.08048764]
[1733997473617,8.08048764,232.74,232.67,8.08048764]
[1733997474013,10.22808764,232.74,232.69,2.148]
[1733997474214,10.22808764,232.74,232.67,8.08048764]
[1733997474709,10.22808764,232.74,232.7,2.1479]
[1733997475117,8.08048764,232.72,232.65,8.08048764]
[1733997475313,8.08048764,232.68,232.54,1.4006]
[1733997475513,8.08048764,232.66,232.58,8.08048764]
[1733997475715,8.08048764,232.64,232.58,8.08048764]
[1733997476509,8.08048764,232.64,232.56,8.08048764]
[1733997476913,10.22898764,232.64,232.58,2.149]
[1733997477117,10.22898764,232.64,232.54,1.4006]
[1733997477318,8.08048764,232.64,232.55,8.08048764]
[1733997477516,2.1487,232.62,232.58,2.1489]
[1733997478115,2.1487,232.62,232.55,8.08048764]
[1733997478316,2.1485,232.63,232.59,2.1489]
[1733997480321,8.08048764,232.62,232.55,8.08048764]
[1733997480522,10.22908764,232.62,232.57,2.149]
[1733997482319,10.22908764,232.62,232.58,2.149]
[1733997487726,2.1487,232.61,232.56,2.1491]
[1733997488020,8.08048764,232.58,232.42,4.3009]
[1733997488217,8.08048764,232.58,232.49,8.08048764]
[1733997489226,8.08048764,232.56,232.44,58.78909707]
[1733997489628,8.08048764,232.52,232.44,58.78909707]
[1733997489825,1.4299,232.65,232.44,66.86958471]
[1733997490025,8.08048764,232.51,232.44,66.86958471]
[1733997490323,8.08048764,232.53,232.46,8.08048764]
[1733997491122,8.08048764,232.53,232.45,8.08048764]
[1733997491329,8.08048764,232.47,232.44,58.78909707]
[1733997491632,10.23058764,232.47,232.44,58.78909707]
[1733997491829,10.23058764,232.47,232.4,8.08048764]
[1733997492233,10.23058764,232.47,232.43,2.1504]
[1733997493227,10.23058764,232.47,232.36,1.4115]
[1733997493228,8.08048764,232.47,232.36,1.4115]
[1733997493526,2.1502,232.45,232.41,2.1505]
[1733997495026,2.1502,232.45,232.39,8.08048764]
[1733997495225,2.1501,232.46,232.42,2.1505]
[1733997495527,8.08048764,232.5,232.43,8.08048764]
[1733997495729,2.1499,232.49,232.45,2.1502]
[1733997495928,8.08048764,232.5,232.45,2.1502]
[1733997496430,10.23048764,232.48,232.43,2.1504]
[1733997496622,8.08048764,232.48,232.43,2.1504]
[1733997497329,8.08048764,232.48,232.39,8.08048764]
[1733997497629,2.15,232.47,232.39,8.08048764]
[1733997498624,2.15,232.47,232.43,2.1503]
[1733997499228,8.08048764,232.48,232.45,2.1502]
[1733997499826,8.08048764,232.5,232.46,2.1501]
[1733997501633,1.3872,232.53,232.43,8.08048764]
[1733997501834,8.08048764,232.51,232.47,2.15]
[1733997502633,8.08048764,232.49,232.39,1.3629]
[1733997502933,8.08048764,232.46,232.39,1.3629]
[1733997503132,8.08048764,232.46,232.44,2.1503]
[1733997504735,8.08048764,232.46,232.42,2.1504]
[1733997505033,8.08048764,232.46,232.3,2.8217]
[1733997505229,10.23078764,232.44,232.36,8.08048764]
[1733997505930,2.1505,232.42,232.36,8.08048764]
[1733997506623,10.23098764,232.42,232.35,5.18335971]
[1733997507732,1.3872,232.53,232.34,8.08048764]
[1733997507733,8.08048764,232.4,232.34,8.08048764]
[1733997507938,10.23118764,232.4,232.32,8.08048764]
[1733997508633,10.23118764,232.4,232.37,2.1509]
[1733997510734,10.23098764,232.42,232.38,2.1508]
[1733997512142,2.1505,232.42,232.38,2.1508]
[1733997513133,2.1505,232.42,232.39,2.1508]
[1733997514035,8.08048764,232.41,232.38,2.1508]
[1733997514736,8.08048764,232.41,232.33,8.08048764]
[1733997514943,8.08048764,232.39,232.37,2.1509]
[1733997516340,2.1508,232.38,232.35,2.1511]
[1733997516739,8.08048764,232.37,232.35,2.1511]
[1733997517243,8.08048764,232.37,232.25,58.83789821]
[1733997517445,8.08048764,232.34,232.26,8.08048764]
[1733997517744,82.46165831,232.48,232.28,8.08048764]
[1733997518042,10.23148764,232.36,232.33,2.1513]
[1733997521241,2.151,232.36,232.33,2.1513]
[1733997522248,8.08048764,232.37,232.35,2.1511]
[1733997522448,2.7497,232.42,232.32,8.08048764]
[1733997522641,8.08048764,232.4,232.32,8.08048764]
[1733997523047,2.1508,232.39,232.32,8.08048764]
[1733997523647,8.08048764,232.4,232.32,8.08048764]
[1733997523849,10.83018764,232.42,232.34,8.08048764]
[1733997524047,8.08048764,232.42,232.34,8.08048764]
[1733997524655,10.23108764,232.42,232.38,2.1508]
[1733997526052,2.1512,232.34,232.3,2.1515]
[1733997526353,8.08048764,232.33,232.25,8.08048764]
[1733997526551,8.08048764,232.33,232.24,2.678]
[1733997526854,8.08048764,232.31,232.28,2.1517]
[1733997528161,8.08048764,232.29,232.23,58.84309425]
[1733997528865,8.08048764,232.27,232.23,58.84309425]
[1733997529057,1.3825,232.38,232.17,10.88038764]
[1733997529058,8.08048764,232.25,232.17,10.88038764]
[1733997530459,8.08048764,232.25,232.17,8.08048764]
[1733997530761,8.08048764,232.23,232.15,8.08048764]
[1733997531264,8.08048764,232.23,232.15,13.3312701]
[1733997532357,10.23278764,232.23,232.15,8.08048764]
[1733997532759,8.08048764,232.23,232.15,8.08048764]
[1733997533259,8.08048764,232.21,232.13,8.08048764]
[1733997533563,8.08048764,232.21,232.14,5.2950376]
[1733997533754,8.08048764,232.21,232.11,2.7189]
[1733997533959,10.23318764,232.19,232.11,10.79938764]
[1733997534160,8.08048764,232.19,232.11,10.79938764]
[1733997534358,8.08048764,232.19,232.15,2.1529]
[1733997534957,10.23308764,232.19,232.15,2.1529]
[1733997536264,2.1527,232.18,232.13,2.1531]
[1733997537770,2.1527,232.18,232.14,2.153]
[1733997539364,10.23308764,232.19,232.14,2.153]
[1733997539564,2.1526,232.19,232.15,2.1529]
[1733997540969,10.23318764,232.18,232.13,2.1532]
[1733997541472,10.23318764,232.18,232.11,8.08048764]
[1733997542167,10.23318764,232.18,232.13,2.1532]
[1733997542370,8.08048764,232.16,232.03,2.7615]
[1733997542568,8.08048764,232.14,232.08,8.08048764]
[1733997543772,8.08048764,232.12,232.09,2.1535]
[1733997543967,8.08048764,232.12,232.05,8.08048764]
[1733997544570,8.08048764,232.1,232.02,58.8943157]
[1733997544871,8.08048764,232.1,232.02,8.08048764]
[1733997545667,2.1535,232.09,232.05,2.1539]
[1733997546265,10.23388764,232.1,232.01,13.28702487]
[1733997546771,8.08048764,232.08,232.01,5.20653723]
[1733997546967,8.08048764,232.08,232.03,2.1541]
[1733997547166,8.08048764,232.08,232.01,5.20653723]
[1733997547975,8.08048764,232.08,232.05,2.1539]
[1733997549064,10.23418764,232.08,232.04,2.154]
[1733997550174,10.23418764,232.08,232.05,2.1539]
[1733997550672,8.08048764,232.08,232.05,2.1539]
[1733997551871,8.08048764,232.1,232.07,2.1537]
[1733997553672,8.08048764,232.08,231.99,5.07741814]
[1733997553875,8.08048764,232.08,232.05,2.1538]
[1733997554075,8.08048764,232.08,232.01,8.08048764]
[1733997554272,8.08048764,232.06,231.99,13.15790578]
[1733997554772,8.08048764,232.06,231.96,1.3207]
[1733997555075,8.08048764,232.06,231.98,8.08048764]
[1733997555270,10.23438764,232.06,231.98,8.08048764]
[1733997555871,8.08048764,232.04,231.98,8.08048764]
[1733997556067,8.08048764,232.04,231.96,9.40118764]
[1733997556377,8.08048764,232.02,232.0,2.1543]
[1733997557478,8.08048764,232.02,231.9,1.3999]
[1733997557672,8.08048764,231.96,231.9,1.3999]
[1733997558672,8.08048764,231.96,231.94,2.1549]
[1733997562275,8.08048764,231.92,231.85,1.4104]
[1733997562478,8.08048764,231.92,231.85,9.49088764]
[1733997563175,8.08048764,231.92,231.9,2.1552]
[1733997563380,8.08048764,231.92,231.82,58.94128496]
[1733997563678,8.08048764,231.9,231.88,2.1554]
[1733997563980,8.08048764,231.9,231.83,8.08048764]
[1733997564678,8.08048764,231.9,231.87,5.2604807]
[1733997565673,8.08048764,231.9,231.89,2.1554]
[1733997566079,8.08048764,231.92,231.87,5.2604807]
[1733997568272,8.08048764,231.92,231.89,2.1553]
[1733997569081,8.08048764,231.92,231.9,2.1553]
[1733997571079,4.1684,232.0,231.91,2.1552]
[1733997571378,8.08048764,231.94,231.91,2.1552]
[1733997571879,10.23538764,231.94,231.91,2.1552]
[1733997572479,8.08048764,231.92,231.89,2.1553]
[1733997572680,8.08048764,231.92,231.87,5.2604807]
[1733997573283,8.08048764,231.92,231.9,2.1552]
[1733997575079,8.08048764,231.92,231.91,2.1552]
[1733997577184,4.1684,232.0,231.95,2.1548]
[1733997577379,8.08048764,231.98,231.95,2.1548]
[1733997578180,8.08048764,231.96,231.93,2.1549]
[1733997578379,8.08048764,231.96,231.88,9.42868764]
[1733997579186,8.08048764,231.96,231.9,2.1553]
[1733997579482,8.08048764,231.96,231.88,9.42868764]
[1733997580380,8.08048764,231.96,231.94,2.1548]
[1733997580984,2.1546,231.98,231.94,2.1548]
[1733997581180,2.1542,232.02,231.98,2.1545]
[1733997581393,8.08048764,231.99,231.98,2.1545]
[1733997583791,2.1547,231.97,231.94,2.1549]
[1733997583986,8.08048764,231.95,231.88,10.85728764]
[1733997584387,8.08048764,231.95,231.93,2.1549]
[1733997586396,8.08048764,231.95,231.88,1.3482]
[1733997586695,8.08048764,231.92,231.9,2.1553]
[1733997588597,8.08048764,231.92,231.88,2.1554]
[1733997588790,8.08048764,231.9,231.88,2.1554]
[1733997589203,8.08048764,231.9,231.82,60.35428496]
[1733997589398,8.08048764,231.9,231.82,68.4347726]
[1733997589602,10.23578764,231.9,231.82,68.4347726]
[1733997589798,8.08048764,231.9,231.82,68.4347726]
[1733997590105,8.08048764,231.9,231.87,2.1555]
[1733997590696,8.08048764,231.9,231.85,5.16719491]
[1733997590903,8.08048764,231.88,231.86,2.1556]
[1733997591100,8.08048764,231.88,231.82,1.413]
[1733997591298,8.08048764,231.84,231.65,5.98407038]
[1733997591501,8.08048764,231.82,231.8,2.1562]
[1733997593003,8.08048764,231.82,231.81,2.1561]
[1733997593203,8.08048764,231.84,231.79,5.11647525]
[1733997594000,8.08048764,231.84,231.81,2.1561]
[1733997594304,2.1557,231.86,231.81,2.1561]
[1733997594606,8.08048764,231.85,231.81,2.1561]
[1733997596308,10.23628764,231.85,231.81,2.1561]
[1733997597405,8.08048764,231.85,231.82,2.156]
[1733997598009,8.08048764,231.89,231.82,8.08048764]
[1733997598209,8.08048764,231.91,231.82,8.08048764]
[1733997598508,10.02048764,231.91,231.84,8.08048764]
[1733997599704,2.1553,231.9,231.86,2.1556]
[1733997600309,12.17568764,231.91,231.87,2.1556]
[1733997600607,12.17568764,231.91,231.8,2.7404]
[1733997600608,8.08048764,231.96,231.88,8.08048764]
[1733997600816,1.94,231.98,231.89,2.1553]
[1733997600817,8.08048764,231.92,231.89,2.1553]
[1733997601108,2.1551,231.93,231.82,1.3557]
[1733997601109,8.08048764,231.9,231.83,1.94]
[1733997601308,8.08048764,231.9,231.81,8.08048764]
[1733997601617,2.1554,231.89,231.86,2.1557]
[1733997602113,10.23578764,231.9,231.86,2.1557]
[1733997603015,2.1554,231.89,231.86,2.1557]
[1733997603216,8.08048764,231.9,231.86,2.1557]
[1733997603518,8.08048764,231.9,231.83,8.08048764]
[1733997603711,2.1551,231.92,231.85,8.08048764]
[1733997604012,12.17558764,231.92,231.85,8.08048764]
[1733997604213,8.08048764,231.94,231.87,8.08048764]
[1733997604614,8.08048764,231.94,231.89,2.1554]
[1733997604917,10.23538764,231.94,231.87,8.08048764]
[1733997605216,10.23538764,231.94,231.91,2.1552]
[1733997605412,2.1548,231.95,231.91,2.1552]
[1733997605616,8.08048764,231.92,231.81,1.94]
[1733997605815,1.94,231.95,231.85,8.08048764]
[1733997606013,8.08048764,231.93,231.85,8.08048764]
[1733997606218,1.94,231.95,231.87,8.08048764]
[1733997606518,8.08048764,231.94,231.93,2.155]
[1733997606712,191.42810984,232.14,231.89,8.08048764]
[1733997606910,8.08048764,231.97,231.89,8.08048764]
[1733997607314,8.08048764,231.97,231.86,1.94]
[1733997607619,8.08048764,231.97,231.89,8.08048764]
[1733997608922,8.08048764,231.97,231.94,2.1549]
[1733997609116,2.1548,231.96,231.86,1.94]
[1733997609319,1.94,231.98,231.86,1.94]
[1733997609320,8.08048764,231.94,231.86,10.02048764]
[1733997609615,8.08048764,231.92,231.91,2.1551]
[1733997609817,8.08048764,231.92,231.84,1.94]
[1733997610017,8.08048764,231.92,231.84,10.02048764]
[1733997610212,4.0047,231.97,231.84,10.02048764]
[1733997610213,1.94,231.93,231.84,1.94]
[1733997610414,1.94,231.93,231.87,8.08048764]
[1733997611119,8.08048764,231.96,231.87,8.08048764]
[1733997611320,8.08048764,231.96,231.93,2.155]
[1733997612218,1.94,231.97,231.93,2.155]
[1733997612417,8.08048764,231.95,231.93,2.155]
[1733997612618,8.08048764,231.95,231.87,8.08048764]
[1733997613720,8.08048764,231.95,231.92,2.1551]
[1733997615926,8.08048764,231.95,231.87,8.08048764]
[1733997616125,8.08048764,231.95,231.93,2.155]
[1733997617621,4.0948,231.96,231.92,2.1551]
[1733997617820,8.08048764,231.95,231.84,1.94]
[1733997618124,8.08048764,231.95,231.86,8.08048764]
[1733997618630,8.08048764,231.93,231.86,8.08048764]
[1733997619030,8.08048764,231.93,231.88,2.1555]
[1733997620123,2.1551,231.92,231.88,2.1555]
[1733997620427,1.94,231.96,231.87,8.08048764]
[1733997620626,1.94,231.96,231.89,8.08048764]
[1733997620827,4.0948,231.96,231.89,8.08048764]
[1733997621126,4.0948,231.96,231.93,2.155]
[1733997621526,1.94,231.96,231.93,2.155]
[1733997621731,2.7144,232.03,231.95,2.1548]
[1733997621929,2.7144,232.03,231.93,8.08048764]
[1733997621930,8.08048764,232.01,231.93,8.08048764]
[1733997622124,2.1544,232.0,231.93,8.08048764]
[1733997622629,1.94,231.99,231.93,8.08048764]
[1733997623030,1.94,232.01,231.98,2.1546]
[1733997624522,10.02048764,232.02,231.98,2.1546]
[1733997624720,12.17468764,232.02,231.98,2.1546]
[1733997625328,2.1543,232.01,231.98,2.1546]
[1733997626034,8.08048764,232.0,231.88,2.707]
[1733997626228,8.08048764,231.96,231.89,8.08048764]
[1733997626427,10.02048764,231.96,231.88,1.3186]
[1733997626635,2.1548,231.95,231.88,8.08048764]
[1733997627631,2.1548,231.95,231.9,2.1552]
[1733997628932,2.1549,231.94,231.9,2.1552]
[1733997630233,10.02048764,231.96,231.88,8.08048764]
[1733997630431,2.1548,231.95,231.91,2.1552]
[1733997631335,10.02048764,231.96,231.91,2.1552]
[1733997631536,2.155,231.94,231.9,2.1553]
[1733997631736,10.02048764,231.96,231.84,58.96185295]
[1733997631737,8.08048764,231.92,231.84,58.96185295]
[1733997631927,8.08048764,231.9,231.83,8.08048764]
[1733997632132,2.1555,231.88,231.84,2.1558]
[1733997632337,8.08048764,231.88,231.81,8.08048764]
[1733997632632,2.1554,231.89,231.83,8.08048764]
[1733997632832,10.02048764,231.91,231.83,8.08048764]
[1733997633235,2.1556,231.87,231.83,10.23638764]
[1733997633636,2.1556,231.87,231.83,2.1559]
[1733997634035,2.1556,231.87,231.75,4.167]
[1733997634036,8.08048764,231.87,231.75,2.8401]
[1733997634232,1.94,231.86,231.79,8.08048764]
[1733997635438,2.1559,231.84,231.79,10.23678764]
[1733997636333,2.1559,231.84,231.79,8.08048764]
[1733997636539,2.1559,231.84,231.8,2.1562]
[1733997638236,1.3786,231.94,231.78,5.16275974]
[1733997638442,8.08048764,231.9,231.83,8.08048764]
[1733997639037,1.94,231.89,231.83,8.08048764]
[1733997639738,1.94,231.89,231.8,1.94]
[1733997639940,1.94,231.89,231.82,8.08048764]
[1733997641036,2.1557,231.87,231.83,2.1559]
[1733997641346,1.94,231.89,231.82,8.08048764]
[1733997641544,1.94,231.89,231.87,2.1555]
[1733997641746,1.94,231.91,231.84,8.08048764]
[1733997641941,1.94,231.91,231.78,6.51725974]
[1733997642146,4.0953,231.91,231.87,2.1555]
[1733997642846,2.1553,231.9,231.86,2.1557]
[1733997643544,1.94,231.91,231.8,8.08048764]
[1733997643545,8.08048764,231.88,231.8,8.08048764]
[1733997644147,8.08048764,231.86,231.78,5.16275974]
[1733997644344,8.08048764,231.86,231.78,13.24324738]
[1733997644345,8.08048764,231.84,231.78,13.24324738]
[1733997645249,1.94,231.86,231.78,5.16275974]
[1733997645549,12.66902706,231.92,231.78,5.16275974]
[1733997645743,2.1555,231.88,231.84,2.1558]
[1733997646140,2.1554,231.89,231.85,2.1558]
[1733997646342,1.94,231.9,231.8,12.66902706]
[1733997646547,1.94,231.91,231.81,1.94]
[1733997647551,4.0952,231.91,231.81,1.94]
[1733997648241,1.94,231.91,231.81,1.94]
[1733997648445,1.94,231.91,231.86,2.1556]
[1733997648643,1.94,231.91,231.81,1.94]
[1733997648948,2.1554,231.89,231.85,2.1557]
[1733997649345,1.94,231.91,231.78,5.16275974]
[1733997649539,12.66902706,231.89,231.73,12.66902706]
[1733997650246,2.156,231.82,231.78,2.1563]
[1733997650450,12.66902706,231.89,231.73,12.66902706]
[1733997650451,1.94,231.84,231.73,12.66902706]
[1733997651147,2.1562,231.8,231.76,2.1565]
[1733997651343,1.94,231.84,231.76,2.1565]
[1733997651546,1.94,231.84,231.69,1.94]
[1733997651742,1.94,231.84,231.72,12.66902706]
[1733997652846,2.1561,231.81,231.72,12.66902706]
[1733997653550,2.156,231.82,231.77,2.1564]
[1733997654351,1.94,231.84,231.8,2.1561]
[1733997655448,4.0959,231.84,231.8,2.1561]
[1733997656551,2.1559,231.84,231.8,2.1561]
[1733997657648,1.96,231.86,231.78,2.1563]
[1733997658151,2.1561,231.82,231.78,2.1563]
[1733997658348,1.96,231.86,231.75,17.96180357]
[1733997658656,14.62902706,231.86,231.77,2.1565]
[1733997659056,2.1559,231.84,231.77,2.1565]
[1733997659250,14.62902706,231.86,231.77,2.1565]
[1733997659653,2.1559,231.84,231.77,2.1565]
[1733997659956,14.62902706,231.86,231.77,2.1565]
[1733997660256,2.1562,231.8,231.77,2.1565]
[1733997662550,14.62902706,231.86,231.75,2.1566]
[1733997662551,2.1563,231.79,231.75,2.1566]
[1733997663261,2.1564,231.78,231.75,2.1566]
[1733997663651,1.96,231.81,231.69,12.66902706]
[1733997663858,12.66902706,231.83,231.69,12.66902706]
[1733997663859,1.96,231.8,231.69,12.66902706]
[1733997664050,2.1567,231.76,231.69,12.66902706]
[1733997664255,1.96,231.8,231.69,12.66902706]
[1733997664256,1.96,231.8,231.71,2.1571]
[1733997664455,1.96,231.8,231.69,12.66902706]
[1733997665356,2.1567,231.76,231.72,2.157]
[1733997666151,1.96,231.8,231.72,2.157]
[1733997666354,2.1567,231.75,231.71,2.1571]
[1733997669364,2.1571,231.71,231.68,2.1573]
[1733997670262,8.11431992,231.74,231.62,58.9936622]
[1733997670263,2.1575,231.67,231.63,2.1578]
[1733997670656,10.07431992,231.68,231.63,8.11431992]
[1733997670863,10.07431992,231.68,231.64,2.1577]
[1733997671259,10.07431992,231.68,231.63,8.11431992]
[1733997671260,2.1574,231.67,231.63,10.27211992]
[1733997671464,1.96,231.68,231.63,8.11431992]
[1733997672067,4.1174,231.68,231.64,2.1577]
[1733997673861,1.96,231.68,231.67,2.1574]
[1733997674069,1.98,231.7,231.61,17.98530537]
[1733997674262,1.98,231.72,231.64,12.68602788]
[1733997674962,1.98,231.72,231.62,1.98]
[1733997676169,2.1571,231.71,231.62,1.98]
[1733997676467,1.98,231.72,231.62,1.98]
[1733997676871,1.98,231.72,231.61,17.98530537]
[1733997677368,1.98,231.72,231.7,2.1571]
[1733997679671,4.137,231.72,231.69,2.1572]
[1733997680069,1.98,231.72,231.64,12.68602788]
[1733997682267,1.98,231.72,231.69,2.1572]
[1733997682469,4.137,231.72,231.69,2.1572]
[1733997682971,1.98,231.72,231.69,2.1572]
[1733997683270,1.98,231.72,231.64,12.68602788]
[1733997683470,2.1571,231.71,231.67,2.1574]
[1733997685470,2.1571,231.71,231.68,2.1573]
[1733997686174,4.137,231.72,231.68,2.1573]
[1733997686576,1.98,231.72,231.64,12.68602788]
[1733997686779,1.98,231.72,231.69,2.1572]
[1733997687274,1.3478,231.75,231.64,12.68602788]
[1733997687574,1.96,231.74,231.64,12.68602788]
[1733997688572,4.1168,231.74,231.64,12.68602788]
[1733997688772,1.96,231.74,231.64,12.68602788]
[1733997689372,1.96,231.74,231.63,1.96]
[1733997689772,1.96,231.74,231.61,17.98530537]
[1733997690078,2.1571,231.71,231.67,2.1574]
[1733997690880,1.96,231.74,231.63,2.1578]
[1733997690881,2.1575,231.67,231.63,2.1578]
[1733997691175,1.96,231.66,231.63,2.1578]
[1733997692469,4.1176,231.66,231.56,12.68602788]
[1733997692868,4.1176,231.66,231.62,2.1578]
[1733997693575,2.1577,231.65,231.61,2.158]
[1733997693774,1.96,231.66,231.59,5.25114486]
[1733997694480,2.1578,231.64,231.6,2.158]
[1733997694679,14.64602788,231.66,231.54,2.7483]
[1733997694979,14.64602788,231.66,231.37,12.73027621]
[1733997694980,12.68602788,231.55,231.37,12.73027621]
[1733997695177,8.14673395,231.38,231.28,47.91895244]
[1733997695376,2.42,231.37,231.25,5.25515348]
[1733997695575,5.13236226,231.62,231.25,5.25515348]
[1733997695576,8.14673395,231.27,231.25,5.25515348]
[1733997695772,8.14673395,231.27,231.14,1.3709]
[1733997695984,8.14673395,231.24,231.15,2.42]
[1733997696177,8.14673395,231.24,231.22,5.22251278]
[1733997696381,8.14673395,231.24,231.16,2.42]
[1733997696680,2.42,231.31,231.14,3.7909]
[1733997697080,8.14673395,231.21,231.14,3.7909]
[1733997697287,2.42,231.31,231.14,3.7909]
[1733997697288,2.162,231.19,231.14,3.7909]
[1733997697492,2.42,231.31,231.13,5.30126496]
[1733997697784,12.73961249,231.24,231.13,7.90126496]
[1733997698089,12.73961249,231.24,231.13,5.30126496]
[1733997698282,5.17379947,231.28,231.12,2.6]
[1733997698581,12.73961249,231.24,231.12,2.6]
[1733997699185,15.33961249,231.24,231.11,5.3828]
[1733997699677,2.6,231.24,231.12,12.73961249]
[1733997699880,2.16197518,231.27,231.12,12.73961249]
[1733997700487,2.16197518,231.27,231.15,12.73961249]
[1733997700787,2.16197518,231.27,231.18,2.162]
[1733997701784,14.90158767,231.27,231.15,2.6]
[1733997701990,14.90158767,231.27,231.14,2.6]
[1733997702188,12.73961249,231.24,231.11,2.7828]
[1733997702387,2.16197518,231.27,231.11,2.7828]
[1733997702388,12.73961249,231.21,231.11,2.7828]
[1733997702585,2.1622,231.17,231.11,2.7828]
[1733997702785,12.73961249,231.18,231.11,2.7828]
[1733997703187,12.73961249,231.18,231.03,1.4067]
[1733997703385,2.1623,231.15,231.05,2.1632]
[1733997703585,2.1623,231.15,231.04,2.6]
[1733997703586,12.73961249,231.15,231.04,2.6]
[1733997704290,2.1626,231.12,231.04,2.6]
[1733997704588,12.73961249,231.18,231.04,2.6]
[1733997704889,12.73961249,231.24,231.09,12.73961249]
[1733997705099,2.6,231.26,231.12,12.73961249]
[1733997705289,4.7613,231.26,231.15,2.1623]
[1733997705490,2.1613,231.26,231.16,1.3221]
[1733997705793,2.16197518,231.27,231.16,1.3221]
[1733997705985,4.32317518,231.27,231.18,2.162]
[1733997706191,2.16197518,231.27,231.17,2.7052]
[1733997706487,22.5382975,231.27,231.12,2.6]
[1733997706685,22.5382975,231.27,231.13,0.7947736]
[1733997706886,2.1615,231.23,231.14,2.1623]
[1733997707086,2.16244269,231.22,231.14,2.1623]
[1733997707386,2.16244269,231.22,231.12,2.6]
[1733997707696,2.16244269,231.22,231.11,4.0585]
[1733997707697,2.16244269,231.22,231.11,6.6585]
[1733997708102,2.16244269,231.22,231.16,2.1622]
[1733997708391,2.16244269,231.22,231.11,6.6585]
[1733997708590,2.16244269,231.22,231.17,2.1621]
[1733997709997,2.6,231.28,231.16,2.6]
[1733997710194,2.6,231.32,231.16,2.6]
[1733997710393,2.6,231.32,231.17,0.79467997]
[1733997710594,20.37632232,231.39,231.18,21.17097703]
[1733997710799,2.6,231.36,231.18,20.37632232]
[1733997710993,2.1605,231.35,231.27,2.1611]
[1733997711190,2.6,231.36,231.25,2.6]
[1733997711397,5.3059484,231.35,231.19,0.79451837]
[1733997711596,5.3059484,231.35,231.18,20.37632232]
[1733997711597,2.1607,231.32,231.2,2.6]
[1733997712396,2.6,231.36,231.21,5.307505]
[1733997712593,2.16094735,231.38,231.22,20.37632232]
[1733997712900,2.16094735,231.38,231.21,5.307505]
[1733997712901,2.16094735,231.38,231.35,2.1604]
[1733997713292,2.16094735,231.38,231.3,2.6]
[1733997713691,2.16094735,231.38,231.27,2.8144]
[1733997713893,2.16094735,231.38,231.29,2.6]
[1733997714101,2.16094735,231.38,231.32,2.1607]
[1733997714600,2.16094735,231.38,231.29,2.6]
[1733997714795,2.16094735,231.38,231.31,2.1608]
[1733997715494,2.16094735,231.38,231.28,1.3388]
[1733997715693,4.76094735,231.38,231.28,1.3388]
[1733997715895,2.6,231.38,231.28,1.3388]
[1733997716294,2.6,231.38,231.28,3.4998]
[1733997716898,2.6,231.38,231.28,1.3388]
[1733997717105,2.6,231.38,231.27,1.3636]
[1733997717602,2.6,231.38,231.23,2.1615]
[1733997717802,20.37632232,231.35,231.21,1.4319]
[1733997718705,2.1611,231.28,231.21,3.5936]
[1733997720299,1.3843,231.38,231.21,1.4319]
[1733997720502,2.6,231.37,231.21,1.4319]
[1733997720905,2.1607,231.32,231.27,2.1611]
[1733997721103,2.6,231.37,231.21,1.4319]